fUSD/lending_fUSD_20240902
["ID","MTS","AMOUNT","RATE_DAILY","PERIOD"]
[336916118,1725241851405,-500.0,0.00022458,2]
[336916119,1725241851416,-677.64,0.00022458,2]
[336916120,1725241851426,-1024.1,0.00022458,2]
[336916121,1725241851437,-617.78,0.00022458,2]
[336916122,1725241851448,-500.0,0.00022458,2]
[336916123,1725241851457,-1003.09,0.00022458,2]
[336916124,1725241851467,-500.0,0.00022458,2]
[336916125,1725241851478,-509.59206697,0.00022458,2]
[336916126,1725241851489,-500.0,0.00022458,2]
[336916127,1725241851499,-263.55165018,0.00022458,2]
[336916128,1725241851508,-500.0,0.00022458,2]
[336916129,1725241851518,-614.88,0.00022458,2]
[336916130,1725241851528,-500.0,0.00022458,2]
[336916131,1725241851540,-500.0,0.00022458,2]
[336916132,1725241851550,-500.0,0.00022458,2]
[336916133,1725241851559,-500.0,0.00022458,2]
[336916134,1725241851569,-581.69,0.00022458,2]
[336916135,1725241851580,-500.0,0.00022458,2]
[336916136,1725241851591,-500.0,0.00022458,2]
[336916137,1725241851601,-500.0,0.00022458,2]
[336916138,1725241851611,-1127.57,0.00022458,2]
[336916139,1725241851621,-570.0,0.00022458,2]
[336916140,1725241851631,-500.0,0.00022458,2]
[336916141,1725241851641,-500.0,0.00022458,2]
[336916142,1725241851651,-623.63,0.00022458,2]
[336916143,1725241851661,-500.0,0.00022458,2]
[336916144,1725241851670,-500.0,0.00022458,2]
[336916145,1725241851680,-500.0,0.00022458,2]
[336916146,1725241851690,-500.0,0.00022458,2]
[336916147,1725241851701,-507.02,0.00022458,2]
[336916148,1725241851711,-817.06,0.00022458,2]
[336916149,1725241851720,-905.53,0.00022458,2]
[336916150,1725241851730,-1466.58,0.00022458,2]
[336916151,1725241851743,-500.0,0.00022458,2]
[336916152,1725241851755,-1099.01,0.00022458,2]
[336916153,1725241851764,-1199.6,0.00022458,2]
[336916154,1725241851773,-500.0,0.00022458,2]
[336916155,1725241851783,-500.0,0.00022458,2]
[336916156,1725241851793,-508.25307991,0.00022458,2]
[336916157,1725241851803,-402.04140299,0.00022458,2]
[336916158,1725241851812,-736.59,0.00022458,2]
[336916159,1725241851822,-500.0,0.00022458,2]
[336916160,1725241851835,-723.81,0.00022458,2]
[336916161,1725241851846,-500.0,0.00022458,2]
[336916162,1725241851856,-913.51,0.00022458,2]
[336916163,1725241851866,-2802.61,0.00022458,2]
[336916164,1725241851875,-500.0,0.00022458,2]
[336916165,1725241851885,-500.0,0.00022458,2]
[336916166,1725241851894,-657.78,0.00022458,2]
[336916167,1725241851904,-578.71,0.00022458,2]
[336916168,1725241851914,-520.92,0.00022458,2]
[336916169,1725241851923,-500.0,0.00022458,2]
[336916170,1725241851933,-500.0,0.00022458,2]
[336916171,1725241851943,-500.0,0.00022458,2]
[336916172,1725241851953,-500.0,0.00022458,2]
[336916173,1725241851962,-500.0,0.00022458,2]
[336916174,1725241851972,-953.71,0.00022458,2]
[336916175,1725241851981,-1274.57,0.00022458,2]
[336916176,1725241851991,-500.0,0.00022458,2]
[336916177,1725241852000,-2875.94,0.00022458,2]
[336916178,1725241852010,-500.0,0.00022458,2]
[336916179,1725241852020,-500.0,0.00022458,2]
[336916180,1725241852031,-2114.16,0.00022458,2]
[336916181,1725241852040,-500.0,0.00022458,2]
[336916182,1725241852050,-2846.06,0.00022458,2]
[336916183,1725241852061,-500.0,0.00022458,2]
[336916184,1725241852072,-657.95,0.00022458,2]
[336916185,1725241852082,-1332.84,0.00022458,2]
[336916186,1725241852091,-500.0,0.00022458,2]
[336916187,1725241852101,-2397.28,0.00022458,2]
[336916188,1725241852111,-880.28,0.00022458,2]
[336916189,1725241852122,-701.72,0.00022458,2]
[336916190,1725241852131,-1387.19,0.00022458,2]
[336916191,1725241852141,-1576.81,0.00022458,2]
[336916192,1725241852344,-500.0,0.00022458,2]
[336916193,1725241852363,-500.0,0.00022458,2]
[336916194,1725241852374,-500.0,0.00022458,2]
[336916195,1725241852384,-523.77,0.00022458,2]
[336916196,1725241852395,-1025.23,0.00022458,2]
[336916197,1725241852406,-500.0,0.00022458,2]
[336916198,1725241852418,-1401.94,0.00022458,2]
[336916199,1725241852429,-578.11,0.00022458,2]
[336916200,1725241852439,-546.26,0.00022458,2]
[336916201,1725241852451,-762.59,0.00022458,2]
[336916202,1725241852461,-1648.6,0.00022458,2]
[336916203,1725241852470,-1370.52,0.00022458,2]
[336916204,1725241852479,-1213.51,0.00022458,2]
[336916205,1725241852489,-735.69,0.00022458,2]
[336916206,1725241852498,-500.0,0.00022458,2]
[336916207,1725241852506,-500.0,0.00022458,2]
[336916208,1725241852516,-2226.77,0.00022458,2]
[336916209,1725241852528,-500.0,0.00022458,2]
[336916210,1725241852538,-1773.37,0.00022458,2]
[336916211,1725241852548,-500.0,0.00022458,2]
[336916212,1725241852558,-500.0,0.00022458,2]
[336916213,1725241852569,-1341.5,0.00022458,2]
[336916214,1725241852579,-1373.12,0.00022458,2]
[336916215,1725241852590,-500.0,0.00022458,2]
[336916216,1725241852602,-1072.41,0.00022458,2]
[336916217,1725241852612,-500.0,0.00022458,2]
[336916218,1725241852622,-576.61,0.00022458,2]
[336916219,1725241852633,-521.5,0.00022458,2]
[336916220,1725241852644,-500.0,0.00022458,2]
[336916221,1725241852655,-933.42,0.00022458,2]
[336916222,1725241852666,-2010.79,0.00022458,2]
[336916223,1725241852676,-787.02,0.00022458,2]
[336916224,1725241852686,-500.0,0.00022458,2]
[336916225,1725241852697,-529.5,0.00022458,2]
[336916226,1725241852706,-1590.93,0.00022458,2]
[336916227,1725241852715,-500.0,0.00022458,2]
[336916228,1725241852725,-1186.64,0.00022458,2]
[336916229,1725241852735,-500.0,0.00022458,2]
[336916230,1725241852751,-2423.43,0.00022458,2]
[336916231,1725241852760,-705.87,0.00022458,2]
[336916232,1725241852772,-892.18,0.00022458,2]
[336916233,1725241852784,-729.48,0.00022458,2]
[336916234,1725241852793,-745.97,0.00022458,2]
[336916235,1725241852803,-500.0,0.00022458,2]
[336916236,1725241852812,-500.0,0.00022458,2]
[336916237,1725241852824,-1100.26,0.00022458,2]
[336916238,1725241852835,-1534.04,0.00022458,2]
[336916239,1725241852844,-500.0,0.00022458,2]
[336916240,1725241852855,-500.0,0.00022458,2]
[336916241,1725241852864,-500.0,0.00022458,2]
[336916242,1725241852874,-804.61,0.00022458,2]
[336916243,1725241852884,-1182.64,0.00022458,2]
[336916244,1725241852896,-2202.03,0.00022458,2]
[336916245,1725241852906,-1841.83,0.00022458,2]
[336916246,1725241852916,-1357.09,0.00022458,2]
[336916247,1725241852927,-500.0,0.00022458,2]
[336916248,1725241852937,-2001.14,0.00022458,2]
[336916249,1725241852946,-1246.98,0.00022458,2]
[336916250,1725241852955,-500.0,0.00022458,2]
[336916251,1725241852964,-917.62,0.00022458,2]
[336916252,1725241852974,-1611.62,0.00022458,2]
[336916253,1725241852984,-727.88,0.00022458,2]
[336916254,1725241852995,-1331.09,0.00022458,2]
[336916255,1725241853005,-502.73139283,0.00022458,2]
[336916256,1725241853014,-1178.51,0.00022458,2]
[336916257,1725241853024,-1810.29,0.00022458,2]
[336916258,1725241853035,-1317.53,0.00022458,2]
[336916259,1725241853044,-1216.8,0.00022458,2]
[336916260,1725241853053,-1241.66,0.00022458,2]
[336916261,1725241853062,-500.0,0.00022458,2]
[336916262,1725241853071,-646.5,0.00022458,2]
[336916263,1725241853080,-3262.11,0.00022458,2]
[336916264,1725241853090,-500.0,0.00022458,2]
[336916265,1725241853099,-2824.81,0.00022458,2]
[336916266,1725241853108,-840.03,0.00022458,2]
[336916267,1725241853118,-712.14,0.00022458,2]
[336916268,1725241853129,-500.0,0.00022458,2]
[336916269,1725241853138,-1608.82,0.00022458,2]
[336916270,1725241853147,-500.0,0.00022458,2]
[336916271,1725241853157,-500.0,0.00022458,2]
[336916272,1725241853167,-824.83,0.00022458,2]
[336916273,1725241853177,-2104.65,0.00022458,2]
[336916274,1725241853186,-2494.8,0.00022458,2]
[336916275,1725241853195,-2193.93,0.00022458,2]
[336916276,1725241853204,-1638.45,0.00022458,2]
[336916277,1725241853214,-3138.29,0.00022458,2]
[336916278,1725241853224,-1878.01,0.00022458,2]
[336916279,1725241853235,-1260.2,0.00022458,2]
[336916280,1725241853245,-785.22,0.00022458,2]
[336916281,1725241853256,-506.60348253,0.00022458,2]
[336916282,1725241853265,-500.0,0.00022458,2]
[336916283,1725241853275,-500.0,0.00022458,2]
[336916284,1725241853284,-1944.19,0.00022458,2]
[336916285,1725241853294,-500.0,0.00022458,2]
[336916286,1725241853303,-500.0,0.00022458,2]
[336916287,1725241853313,-500.0,0.00022458,2]
[336916288,1725241853322,-500.0,0.00022458,2]
[336916289,1725241853331,-500.0,0.00022458,2]
[336916290,1725241853341,-500.0,0.00022458,2]
[336916291,1725241853350,-642.27,0.00022458,2]
[336916292,1725241853359,-500.0,0.00022458,2]
[336916293,1725241853368,-1353.25,0.00022458,2]
[336916294,1725241853379,-1719.41,0.00022458,2]
[336916295,1725241853388,-500.0,0.00022458,2]
[336916296,1725241853399,-500.0,0.00022458,2]
[336916297,1725241853409,-1164.54,0.00022458,2]
[336916298,1725241853418,-500.0,0.00022458,2]
[336916299,1725241853429,-1718.18,0.00022458,2]
[336916300,1725241853439,-3954.94,0.00022458,2]
[336916301,1725241853450,-500.0,0.00022458,2]
[336916302,1725241853460,-640.98,0.00022458,2]
[336916303,1725241853471,-500.0,0.00022458,2]
[336916304,1725241853480,-500.0,0.00022458,2]
[336916305,1725241853489,-710.69,0.00022458,2]
[336916306,1725241853498,-873.81,0.00022458,2]
[336916307,1725241853508,-2620.51,0.00022458,2]
[336916308,1725241853518,-500.0,0.00022458,2]
[336916309,1725241853527,-500.0,0.00022458,2]
[336916310,1725241853537,-892.28,0.00022458,2]
[336916311,1725241853547,-500.0,0.00022458,2]
[336916312,1725241853557,-500.0,0.00022458,2]
[336916313,1725241853567,-626.61,0.00022458,2]
[336916314,1725241853578,-1623.18,0.00022458,2]
[336916315,1725241853588,-1509.84,0.00022458,2]
[336916316,1725241853598,-600.68,0.00022458,2]
[336916317,1725241853608,-1963.68,0.00022458,2]
[336916318,1725241853619,-500.0,0.00022458,2]
[336916319,1725241853629,-2183.39,0.00022458,2]
[336916320,1725241853640,-1312.46,0.00022458,2]
[336916321,1725241853649,-860.92,0.00022458,2]
[336916322,1725241853659,-870.33,0.00022458,2]
[336916323,1725241853670,-953.04,0.00022458,2]
[336916324,1725241853679,-1155.9,0.00022458,2]
[336916325,1725241853689,-500.0,0.00022458,2]
[336916326,1725241853699,-1953.99,0.00022458,2]
[336916327,1725241853708,-500.0,0.00022458,2]
[336916328,1725241853719,-500.0,0.00022458,2]
[336916329,1725241853728,-1739.01,0.00022458,2]
[336916330,1725241853740,-1049.35,0.00022458,2]
[336916331,1725241853752,-500.0,0.00022458,2]
[336916332,1725241853763,-698.44,0.00022458,2]
[336916333,1725241853773,-500.0,0.00022458,2]
[336916334,1725241853784,-517.31,0.00022458,2]
[336916335,1725241853793,-2549.62,0.00022458,2]
[336916336,1725241853802,-500.0,0.00022458,2]
[336916337,1725241853811,-500.0,0.00022458,2]
[336916338,1725241853823,-500.0,0.00022458,2]
[336916339,1725241853834,-1518.56,0.00022458,2]
[336916340,1725241853844,-400.0,0.00022458,2]
[336916341,1725241853854,-500.0,0.00022458,2]
[336916342,1725241853865,-1084.78,0.00022458,2]
[336916343,1725241853875,-922.8,0.00022458,2]
[336916344,1725241853884,-536.72,0.00022458,2]
[336916345,1725241853894,-500.0,0.00022458,2]
[336916346,1725241853905,-500.0,0.00022458,2]
[336916347,1725241853915,-500.0,0.00022458,2]
[336916348,1725241853924,-500.0,0.00022458,2]
[336916349,1725241853936,-619.79,0.00022458,2]
[336916350,1725241853947,-500.0,0.00022458,2]
[336916351,1725241853956,-679.96,0.00022458,2]
[336916352,1725241853965,-500.0,0.00022458,2]
[336916353,1725241853974,-809.69,0.00022458,2]
[336916354,1725241853985,-500.0,0.00022458,2]
[336916355,1725241853994,-500.0,0.00022458,2]
[336916356,1725241854006,-2189.33,0.00022458,2]
[336916357,1725241854016,-812.98,0.00022458,2]
[336916358,1725241854025,-151.0,0.00022458,7]
[336916359,1725241854035,-658.7,0.00022458,2]
[336916360,1725241854044,-789.16,0.00022458,2]
[336916361,1725241854054,-2434.73,0.00022458,2]
[336916362,1725241854063,-500.0,0.00022458,2]
[336916363,1725241854072,-531.99,0.00022458,2]
[336916364,1725241854082,-2672.93,0.00022458,2]
[336916365,1725241854093,-549.14,0.00022458,2]
[336916366,1725241854102,-500.0,0.00022458,2]
[336916367,1725241854111,-743.55,0.00022458,2]
[336916368,1725241854121,-848.24,0.00022458,2]
[336916369,1725241854131,-500.0,0.00022458,2]
[336916370,1725241854140,-1391.92,0.00022458,2]
[336916371,1725241854149,-1046.87,0.00022458,2]
[336916372,1725241854159,-500.0,0.00022458,2]
[336916373,1725241854168,-675.8,0.00022458,2]
[336916374,1725241854177,-500.0,0.00022458,2]
[336916375,1725241854186,-500.0,0.00022458,2]
[336916376,1725241854196,-500.0,0.00022458,2]
[336916377,1725241854205,-500.0,0.00022458,2]
[336916378,1725241854214,-953.42,0.00022458,2]
[336916379,1725241854223,-500.0,0.00022458,2]
[336916380,1725241854233,-500.0,0.00022458,2]
[336916381,1725241854242,-500.0,0.00022458,2]
[336916382,1725241854251,-500.0,0.00022458,2]
[336916383,1725241854261,-500.0,0.00022458,2]
[336916384,1725241854270,-500.0,0.00022458,2]
[336916385,1725241854280,-500.0,0.00022458,2]
[336916386,1725241854289,-989.04,0.00022458,2]
[336916387,1725241854298,-509.06,0.00022458,2]
[336916388,1725241854308,-1588.18,0.00022458,2]
[336916389,1725241854317,-500.0,0.00022458,2]
[336916390,1725241854327,-771.14,0.00022458,2]
[336916391,1725241854336,-500.0,0.00022458,2]
[336916392,1725241854346,-500.0,0.00022458,2]
[336916393,1725241854356,-500.0,0.00022458,2]
[336916394,1725241854365,-1611.49,0.00022458,2]
[336916395,1725241854375,-586.88,0.00022458,2]
[336916396,1725241854384,-3918.76,0.00022458,2]
[336916397,1725241854393,-579.33,0.00022458,2]
[336916398,1725241854402,-500.0,0.00022458,2]
[336916399,1725241854411,-500.0,0.00022458,2]
[336916400,1725241854421,-500.0,0.00022458,2]
[336916401,1725241854430,-784.99,0.00022458,2]
[336916402,1725241854440,-1892.35,0.00022458,2]
[336916403,1725241854449,-500.0,0.00022458,2]
[336916404,1725241854458,-500.0,0.00022458,2]
[336916405,1725241854467,-744.88,0.00022458,2]
[336916406,1725241854476,-500.0,0.00022458,2]
[336916407,1725241854485,-500.0,0.00022458,2]
[336916408,1725241854495,-500.0,0.00022458,2]
[336916409,1725241854504,-853.61,0.00022458,2]
[336916410,1725241854513,-500.0,0.00022458,2]
[336916411,1725241854523,-616.58,0.00022458,2]
[336916412,1725241854532,-500.0,0.00022458,2]
[336916413,1725241854541,-941.6,0.00022458,2]
[336916414,1725241854550,-500.0,0.00022458,2]
[336916415,1725241854560,-500.0,0.00022458,2]
[336916416,1725241854570,-659.46,0.00022458,2]
[336916417,1725241854579,-806.42,0.00022458,2]
[336916418,1725241854589,-728.3,0.00022458,2]
[336916419,1725241854598,-500.0,0.00022458,2]
[336916420,1725241854607,-515.04,0.00022458,2]
[336916421,1725241854616,-500.0,0.00022458,2]
[336916422,1725241854626,-500.0,0.00022458,2]
[336916423,1725241854635,-975.4,0.00022458,2]
[336916424,1725241854644,-500.52053008,0.00022458,2]
[336916425,1725241854654,-554.22,0.00022458,2]
[336916426,1725241854664,-729.14,0.00022458,2]
[336916427,1725241854673,-1208.26,0.00022458,2]
[336916428,1725241854683,-999.0,0.00022458,2]
[336916429,1725241854695,-1991.07,0.00022458,2]
[336916430,1725241854706,-529.58863312,0.00022458,2]
[336916431,1725241854715,-500.0,0.00022458,2]
[336916432,1725241854724,-530.46981607,0.00022458,2]
[336916433,1725241854733,-500.0,0.00022458,2]
[336916434,1725241854747,-570.83,0.00022458,2]
[336916435,1725241854756,-537.04820769,0.00022458,2]
[336916436,1725241854765,-776.91,0.00022458,2]
[336916437,1725241854774,-500.0,0.00022458,2]
[336916438,1725241854784,-500.0,0.00022458,2]
[336916439,1725241854859,-500.0,0.00022458,2]
[336916440,1725241854870,-511.71966741,0.00022458,2]
[336916441,1725241854880,-500.0,0.00022458,2]
[336916442,1725241854889,-719.55,0.00022458,2]
[336916443,1725241854899,-754.85,0.00022458,2]
[336916444,1725241854908,-500.0,0.00022458,2]
[336916445,1725241854918,-1168.88,0.00022458,2]
[336916446,1725241854927,-1380.25,0.00022458,2]
[336916447,1725241854937,-738.48,0.00022458,2]
[336916448,1725241854948,-151.0,0.00022458,7]
[336916449,1725241854960,-151.0,0.00022458,7]
[336916450,1725241854969,-500.0,0.00022458,2]
[336916451,1725241854978,-500.0,0.00022458,2]
[336916452,1725241854987,-151.0,0.00022458,7]
[336916453,1725241854997,-1913.62,0.00022458,2]
[336916454,1725241855006,-151.0,0.00022458,7]
[336916455,1725241855015,-500.0,0.00022458,2]
[336916456,1725241855024,-879.03,0.00022458,2]
[336916457,1725241855033,-500.0,0.00022458,2]
[336916458,1725241855042,-500.0,0.00022458,2]
[336916459,1725241855053,-570.44,0.00022458,2]
[336916460,1725241855062,-151.0,0.00022458,7]
[336916461,1725241855072,-151.0,0.00022458,7]
[336916462,1725241855082,-500.0,0.00022458,2]
[336916463,1725241855093,-1020.73,0.00022458,2]
[336916464,1725241855104,-522.39,0.00022458,2]
[336916465,1725241855115,-586.82,0.00022458,2]
[336916466,1725241855125,-500.0,0.00022458,2]
[336916467,1725241855135,-151.0,0.00022458,7]
[336916468,1725241855144,-1009.91,0.00022458,2]
[336916469,1725241855153,-151.0,0.00022458,7]
[336916470,1725241855162,-500.0,0.00022458,2]
[336916471,1725241855171,-500.0,0.00022458,2]
[336916472,1725241855180,-1255.29,0.00022458,2]
[336916473,1725241855190,-151.0,0.00022458,7]
[336916474,1725241855203,-151.0,0.00022458,7]
[336916475,1725241855213,-500.0,0.00022458,2]
[336916476,1725241855222,-786.85,0.00022458,2]
[336916477,1725241855231,-874.3,0.00022458,2]
[336916478,1725241855241,-1092.13,0.00022458,2]
[336916479,1725241855250,-500.0034553,0.00022458,2]
[336916480,1725241855259,-247.617253,0.00022458,7]
[336916481,1725241855268,-1030.96,0.00022458,2]
[336916482,1725241855277,-500.0,0.00022458,2]
[336916483,1725241855286,-788.01,0.00022458,2]
[336916484,1725241855295,-500.0,0.00022458,2]
[336916485,1725241855304,-686.28,0.00022458,2]
[336916486,1725241855313,-895.93,0.00022458,2]
[336916487,1725241855323,-2084.4,0.00022458,2]
[336916488,1725241855332,-500.0,0.00022458,2]
[336916489,1725241855342,-1248.92,0.00022458,2]
[336916490,1725241855352,-895.04,0.00022458,2]
[336916491,1725241855361,-1003.67,0.00022458,2]
[336916492,1725241855370,-500.0,0.00022458,2]
[336916493,1725241855379,-151.0,0.00022458,7]
[336916494,1725241855388,-1706.13,0.00022458,2]
[336916495,1725241855398,-616.48,0.00022458,2]
[336916496,1725241855407,-9343.77,0.00022458,2]
[336916497,1725241855416,-512.31,0.00022458,2]
[336916498,1725241855425,-500.0,0.00022458,2]
[336916499,1725241855434,-500.0,0.00022458,2]
[336916500,1725241855444,-500.0,0.00022458,2]
[336916501,1725241855457,-500.0,0.00022458,2]
[336916502,1725241855466,-681.6,0.00022458,2]
[336916503,1725241855475,-629.85,0.00022458,2]
[336916504,1725241855483,-1147.78,0.00022458,2]
[336916505,1725241855492,-791.95,0.00022458,2]
[336916506,1725241855501,-500.0,0.00022458,2]
[336916507,1725241855510,-834.73,0.00022458,2]
[336916508,1725241855519,-724.78,0.00022458,2]
[336916509,1725241855528,-500.0,0.00022458,2]
[336916510,1725241855538,-500.0,0.00022458,2]
[336916511,1725241855547,-1901.51,0.00022458,2]
[336916512,1725241855559,-500.0,0.00022458,2]
[336916513,1725241855569,-500.0,0.00022458,2]
[336916514,1725241855581,-1314.42,0.00022458,2]
[336916515,1725241855591,-904.29,0.00022458,2]
[336916516,1725241855602,-151.0,0.00022458,7]
[336916517,1725241855611,-151.0,0.00022458,7]
[336916518,1725241855621,-1126.39,0.00022458,2]
[336916519,1725241855630,-500.0,0.00022458,2]
[336916520,1725241855639,-537.45,0.00022458,2]
[336916521,1725241855648,-392.62941035,0.00022458,2]
[336916522,1725241855658,-930.31,0.00022458,2]
[336916523,1725241855670,-151.0,0.00022458,7]
[336916524,1725241855679,-153.403222,0.00022458,7]
[336916525,1725241855690,-723.85,0.00022458,2]
[336916526,1725241855704,-500.0,0.00022458,2]
[336916527,1725241855713,-500.0,0.00022458,2]
[336916528,1725241855722,-1121.12,0.00022458,2]
[336916529,1725241855732,-582.83,0.00022458,2]
[336916530,1725241855743,-500.0,0.00022458,2]
[336916531,1725241855753,-901.22,0.00022458,2]
[336916532,1725241855763,-1341.85,0.00022458,2]
[336916533,1725241855772,-1113.86,0.00022458,2]
[336916534,1725241855783,-500.0,0.00022458,2]
[336916535,1725241855793,-500.0,0.00022458,2]
[336916536,1725241855803,-920.04,0.00022458,2]
[336916537,1725241855814,-500.0,0.00022458,2]
[336916538,1725241855825,-1100.56,0.00022458,2]
[336916539,1725241855836,-151.0,0.00022458,7]
[336916540,1725241855847,-2551.2,0.00022458,2]
[336916541,1725241855856,-882.46,0.00022458,2]
[336916542,1725241855865,-753.52,0.00022458,2]
[336916543,1725241855874,-500.0,0.00022458,2]
[336916544,1725241855883,-778.09,0.00022458,2]
[336916545,1725241855892,-500.0,0.00022458,2]
[336916546,1725241855902,-500.0,0.00022458,2]
[336916547,1725241855912,-1642.36,0.00022458,2]
[336916548,1725241855922,-1068.69,0.00022458,2]
[336916549,1725241855931,-670.58,0.00022458,2]
[336916550,1725241855941,-1099.79,0.00022458,2]
[336916551,1725241855954,-1901.91,0.00022458,2]
[336916552,1725241855964,-500.03581441,0.00022458,2]
[336916553,1725241855973,-1471.24,0.00022458,2]
[336916554,1725241855982,-1301.42,0.00022458,2]
[336916555,1725241855991,-500.0,0.00022458,2]
[336916556,1725241856000,-500.07226327,0.00022458,2]
[336916557,1725241856010,-153.793627,0.00022458,7]
[336916558,1725241856020,-555.63,0.00022458,2]
[336916559,1725241856030,-221.21661507,0.00022463,2]
[336916560,1725241856040,-500.0,0.00022464,2]
[336916561,1725241856049,-658.75,0.00022464,2]
[336916562,1725241856058,-500.0,0.00022464,2]
[336916563,1725241856067,-1323.87,0.00022464,2]
[336916564,1725241856076,-500.0,0.00022464,2]
[336916565,1725241856085,-322.46556622,0.00022464,2]
[336916566,1725241856094,-500.0,0.00022464,2]
[336916567,1725241856103,-500.0,0.00022464,2]
[336916568,1725241856113,-500.0,0.00022464,2]
[336916569,1725241856127,-500.0,0.00022464,2]
[336916570,1725241856137,-500.0,0.00022464,2]
[336916571,1725241856147,-388.04225345,0.00022464,2]
[336916572,1725241856158,-793.48,0.00022464,2]
[336916573,1725241856168,-1303.18,0.00022464,2]
[336916574,1725241856177,-500.0,0.00022464,2]
[336916575,1725241856187,-500.0,0.00022464,2]
[336916576,1725241856196,-976.33,0.00022464,2]
[336916577,1725241856207,-656.52,0.00022464,2]
[336916578,1725241856216,-1233.94,0.00022464,2]
[336916579,1725241856226,-544.48,0.00022464,2]
[336916580,1725241856235,-1153.39,0.00022464,2]
[336916581,1725241856245,-1612.92,0.00022464,2]
[336916582,1725241856256,-1798.3,0.00022464,2]
[336916583,1725241856266,-745.45,0.00022464,2]
[336916584,1725241856279,-1391.48,0.00022464,2]
[336916585,1725241856289,-717.79,0.00022464,2]
[336916586,1725241856298,-500.0,0.00022464,2]
[336916587,1725241856308,-1768.03,0.00022464,2]
[336916588,1725241856318,-1275.08,0.00022464,2]
[336916589,1725241856328,-529.62321941,0.00022464,2]
[336916590,1725241856338,-500.0,0.00022464,2]
[336916591,1725241856348,-500.0,0.00022464,2]
[336916592,1725241856357,-897.76,0.00022464,2]
[336916593,1725241856367,-1063.26,0.00022464,2]
[336916594,1725241856377,-840.6,0.00022464,2]
[336916595,1725241856386,-1110.72,0.00022464,2]
[336916596,1725241856395,-500.0,0.00022464,2]
[336916597,1725241856405,-500.0,0.00022464,2]
[336916598,1725241856414,-773.1,0.00022464,2]
[336916599,1725241856426,-500.0,0.00022464,2]
[336916600,1725241856437,-500.0,0.00022464,2]
[336916601,1725241856447,-500.0,0.00022464,2]
[336916602,1725241856456,-500.0,0.00022464,2]
[336916603,1725241856465,-500.0,0.00022464,2]
[336916604,1725241856474,-500.0,0.00022464,2]
[336916605,1725241856484,-681.63,0.00022464,2]
[336916606,1725241856492,-500.0,0.00022464,2]
[336916607,1725241856501,-500.0,0.00022464,2]
[336916608,1725241856510,-500.0,0.00022464,2]
[336916609,1725241856520,-500.0,0.00022464,2]
[336916610,1725241856529,-549.42,0.00022464,2]
[336916611,1725241856538,-744.6,0.00022464,2]
[336916612,1725241856548,-500.0,0.00022464,2]
[336916613,1725241856559,-538.44,0.00022464,2]
[336916614,1725241856569,-699.89,0.00022464,2]
[336916615,1725241856579,-500.0,0.00022464,2]
[336916616,1725241856590,-546.52,0.00022464,2]
[336916617,1725241856600,-503.74,0.00022464,2]